Workbook

Sheet MATRIZ DE INDICADORES
D2: MACROPROCESO ESTRATÉGICO | S2: CÓDIGO: ESGr027
D3: PROCESO GESTIÓN SISTEMAS INTEGRADOS - CALIDAD | S3: VERSIÓN: 8
D4: MATRIZ DE MEDICIÓN Y SEGUIMIENTO A LOS PROCESOS DE GESTIÓN | S4: VIGENCIA: 2023-07-28
S5: PÁGINA: 1 de 6
Q7: FECHA DE ACTUALIZACIÓN: | S7: AÑO | T7: MES | U7: DÍA
S8: 2025 | T8: 3 | U8: 13
B10: ALINEACIÓN DE LOS INDICADORES CON LOS DOCUMENTOS ESTRATÉGICOS Y LOS OBJETIVOS DE CALIDAD
B12: PROCESO GESTIÓN | C12: FRENTES DEL PLAN ESTRATÉGICO | D12: LINEAMIENTOS DE LA POLÍTICA DE CALIDAD | E12: OBJETIVOS DE CALIDAD | F12: OBJETIVO GENERAL DEL PROCESO | G12: OBJETIVOS ESPECÍFICOS | H12: NOMBRE INDICADOR | I12: FÓRMULA | J12: TIPO DE INDICADOR | K12: SEGUIMIENTO MEDICIÓN | L12: META | M12: ACTIVIDAD | N12: RESPONSABLE DE LA ACTIVIDAD | O12: ¿QUÉ RECURSOS SE REQUIEREN? | P12: FECHA EJECUCIÓN DE ACTIVIDADES | Q12: EVIDENCIA | R12: ¿CUÁNDO FINALIZARÁ? | S12: RESULTADO | T12: NIVEL OBTENIDO | U12: ACCESO
B13: Institucional | C13: Frente Estratégico VI: Gobierno Universitario Digital | D13: Se legitima como una organización social del conocimiento y el aprendizaje que se compromete con el pensamiento basado en riesgos y el mejoramiento continuo mediante buenas prácticas administrativas y académicas en búsqueda de la acreditación de programas y la acreditación institucional, enfocándose en el bienestar de la comunidad universitaria como factor constitutivo de la vida y la libertad y la consolidación de una organización universitaria inteligente con alma y corazón. | E13: Mejorar continuamente el desempeño de los procesos a través de la implementación de buenas prácticas institucionales y de la aplicación de los mecanismos dispuestos por la Universidad de Cundinamarca, para la constitución de una organización universitaria inteligente con alma y corazón. | F13: Gestionar y administrar la arquitectura, la operación, el soporte y la seguridad de los Recursos y servicios Informáticos apoyando la implementación del Sistema de Gestión de Seguridad de la Información – SGSI y la Ley de protección de Datos, mediante la generación de políticas, buenas prácticas y proyectos de inversión tecnológica orientadas a la comunidad educativa en concordancia con las directrices institucionales. | G13: Dinamizar la sistematización de procesos, mediante la implementación del 80% de las solicitudes en uso y apropiación de los sistemas de información para la vigencia 2025. | H13: Uso y apropiación de los sistemas de información | I13: Número de soluciones en uso * 100 / Total de soluciones habilitadas | J13: EFICIENCIA | K13: SEMESTRAL | L13: 0.85 | M13: Soporte a usuarios finales de los Sistemas de Información Institucionales para guiar en el buen manejo y aprovechamiento de los mismos | N13: Área uso y apropiación de sistemas de información | O13: Plataforma Institucional | P13: 2025-12-15 | Q13: Inventario de sistemas de información | R13: 2025 | U13: INS-5
M14: Verificar de que módulos se recibe soporte | O14: Plataforma Institucional | P14: 2025-12-16 | Q14: Inventario de sistemas de información
M15: Verificar si los módulos que no requieren soporte, tienen información registrada | O15: Plataforma Institucional | P15: 2025-12-17 | Q15: Inventario de sistemas de información
M16: Actualizar el estado de los módulos en el inventario de Sistemas de Información | O16: Plataforma Institucional | P16: 2025-12-18 | Q16: Inventario de sistemas de información
B17: Sistemas y Tecnología | G17: Asegurar el correcto funcionamiento de los recursos tecnológicos y conectividad a través de la ejecución del 70% del cronograma de mantenimientos preventivos en la vigencia 2025. | H17: Ejecución de mantenimientos preventivos a recursos informáticos de custodia de la Dirección de Sistemas y Tecnología | I17: Número de actividades ejecutadas * 100 / Total de actividades planeadas | J17: EFICIENCIA | K17: TRIMESTRAL | L17: 0.8 | M17: Realizar cronogramas de mantenimientos a equipos de computo administrativos con periodicidad semestral. Para Sedes, Seccionales y Extensiones. | N17: Área de Servicios Tecnológicos | O17: Recursos Humanos | P17: 2025-12-18 | Q17: Formato EPIr001- Cronograma de Mantenimientos Preventivos a Equipos de Computo | R17: 2025 | S17: 0.96 | T17: EXCELENTE | U17: ASI-2
M18: Realizar la solicitud a la Oficina de Comunicaciones de la publicación de los cronogramas en la Intranet. | O18: Recursos Humanos | Q18: Correo institucional
M19: Se envía correo a cada una de las Direcciones u Oficinas informado cuando se realizara dicho mantenimiento. | O19: Recursos Humanos | Q19: Correo institucional
M20: Realizar el mantenimiento preventivo a los equipos tecnológicos | O20: Elementos Tecnológicos Recursos Humanos Plataforma Institucional / Bienes y Servicios | Q20: Formato Lista de Verificación Hoja de Vida Activos
H21: Ejecución de mantenimientos preventivos a cuartos de telecomunicaciones (TR's) y centros de datos (CD's) de la sede Fusagasugá en custodia de la Dirección de Sistemas y Tecnología | I21: Número de actividades ejecutadas * 100 / Total de actividades planeadas | J21: EFICIENCIA | K21: TRIMESTRAL | L21: 0.85 | M21: Realizar cronogramas de mantenimientos preventivos a los cuartos de telecomunicaciones (TR's) y centros de datos (CD's) en la sede, seccionales y extensiones con periodicidad semestral. | N21: Área de Servicios Tecnológicos | O21: Recursos Humanos | P21: 2025-12-18 | Q21: Formato EPIr001- Cronograma de Mantenimientos Preventivos a TR´S Y CD´S | R21: 2025 | S21: 1 | T21: EXCELENTE | U21: ASI-3
M22: Realizar el mantenimiento preventivo a los Switch | O22: Recursos Humanos Infraestructura Tecnológica | Q22: Formato Lista de Verificación Hoja de Vida Activos
M23: Realizar Backup de la configuración de los Switch | O23: Recursos Humanos Infraestructura Tecnológica | Q23: Formato Lista de Verificación Hoja de Vida Activos
G24: Asegurar la atención oportuna del 75% de las solicitudes registradas en los servicios de TI, a través de la mesa de servicios a un clic en la vigencia 2025. | H24: Efectividad del servicio - Mesa de servicios a un Clic | I24: Número de solicitudes* 100/Total de solicitudes gestionadas en 10 días hábiles | J24: EFICIENCIA | K24: SEMESTRAL | L24: 0.8 | M24: Atender el mayor número de solicitudes posibles en los tiempos establecidos para cada servicio que ofrece la Dirección de Sistemas y Tecnología | N24: Dirección de Sistemas y Tecnología | O24: Plataforma Institucional | P24: 2025-12-18 | Q24: Solicitudes mesa de servicios | R24: 2025 | U24: ASI-4
M25: Ejecutar el reporte de solicitudes
M26: Realizar validación de información de las categorías involucradas
M27: Realizar el filtro con la información necesaria de los estados: atendida / finalizada, dentro de los tiempos de respuesta establecidos: desde el día 0 al día 10, contando únicamente los días laborales
G28: Asegurar en un 70% la entrega de necesidades y requerimientos identificados en el proceso de diseño y desarrollo de los sistema de información, garantizando que todas las expectativas y exigencias sean cubiertas eficazmente durante la implementación del sistema. | H28: Soluciones a necesidades en Sistemas de Información | I28: Numero de soluciones entregadas *100 / Numero de soluciones atendidas | J28: EFICACIA | K28: SEMESTRAL | L28: 0.7 | M28: Realizar cronograma de necesidades de sistemas de información | N28: Dirección de Sistemas y Tecnología / Área de Desarrollo de Sistemas de Información | O28: Plataforma Institucional | P28: 2025-12-18 | Q28: Cronograma de necesidades de Sistemas de información | R28: 2025 | U28: ASI-5
M29: Mesas de trabajo con el usuario solicitante con el fin de revisar la necesidad
M30: Socializar, desplegar en ambiente productivo y entregar la necesidad
M31: Actualizar el cronograma de necesidades de sistemas de información
B37: Diagonal 18 No. 20-29 Fusagasugá – Cundinamarca Teléfono (601) 8281483 Línea Gratuita 018000180414 www.ucundinamarca.edu.co E-mail: info@ucundinamarca.edu.co NIT: 890.680.062-2
B38: Documento controlado por el Sistema de Gestión de la Calidad Asegúrese que corresponde a la última versión consultando el Portal Institucional
C47: LINEAMIENTOS DE LA POLÍTICA DE CALIDAD | D47: OBJETIVOS DE CALIDAD | E47: ALINEACIÓN DE LOS INDICADORES CON LOS DOCUMENTOS ESTRATÉGICOS Y LOS OBJETIVOS DE CALIDAD
C48: LINEAMIENTOS DE LA POLÍTICA DE SEGURIDAD Y SALUD EN EL TRABAJO | D48: OBJETIVOS DE SEGURIDAD Y SALUD EN EL TRABAJO | E48: ALINEACIÓN DE LOS INDICADORES CON LOS DOCUMENTOS ESTRATÉGICOS Y LOS OBJETIVOS DE SEGURIDAD Y SALUD EN EL TRABAJO
C49: LINEAMIENTOS DE LA POLÍTICA DE AMBIENTAL | D49: OBJETIVOS DE AMBIENTAL | E49: ALINEACIÓN DE LOS INDICADORES CON LOS DOCUMENTOS ESTRATÉGICOS Y LOS OBJETIVOS DE AMBIENTAL
C50: LINEAMIENTOS DE LA POLÍTICA DE SEGURIDAD DE LA INFORMACIÓN | D50: OBJETIVOS DE SEGURIDAD DE LA INFORMACIÓN | E50: ALINEACIÓN DE LOS INDICADORES CON LOS DOCUMENTOS ESTRATÉGICOS Y LOS OBJETIVOS DE SEGURIDAD DE LA INFORMACIÓN
C51: LINEAMIENTOS DE LA POLÍTICA DE SEGURIDAD DE ANTISOBORNO | D51: OBJETIVOS DE SEGURIDAD DE ANTISOBORNO | E51: ALINEACIÓN DE LOS INDICADORES CON LOS DOCUMENTOS ESTRATÉGICOS Y LOS OBJETIVOS DE SEGURIDAD DE ANTISOBORNO
C52: LINEAMIENTOS DE LA POLÍTICA DE LA CONCILIACIÓN DE LA VIDA PERSONAL, FAMILIAR Y LABORAL | D52: OBJETIVOS DE LA CONCILIACIÓN DE LA VIDA PERSONAL, FAMILIAR Y LABORAL | E52: ALINEACIÓN DE LOS INDICADORES CON LOS DOCUMENTOS ESTRATÉGICOS Y LOS OBJETIVOS DE LA CONCILIACIÓN DE LA VIDA PERSONAL, FAMILIAR Y LABORAL

Sheet INS-5
B2: REGRESAR
E5: MACROPROCESO ESTRATÉGICO | M5: CÓDIGO: ESGr027
E6: PROCESO GESTIÓN SISTEMAS INTEGRADOS - CALIDAD | M6: VERSIÓN: 8
E7: MATRIZ DE MEDICIÓN Y SEGUIMIENTO A LOS PROCESOS DE GESTIÓN | M7: VIGENCIA: 2023-07-28
M8: PÁGINA: 2 de 6
C10: FICHA DE INDICADOR
C12: MACROPROCESO | E12: Apoyo | I12: NOMBRE DEL INDICADOR | K12: Uso y Apropiación de los Sistemas de Información
C13: PROCESO GESTIÓN | E13: Sistemas y Tecnología
C14: RESPONSABLE DE MEDICIÓN | E14: Dirección de Sistemas y Tecnología
C16: 1. COMPORTAMIENTO DE INDICADOR
C17: CLASIFICACIÓN DE LA MEDICIÓN | E17: 1 | H17: TIPO DE INDICADOR | J17: Eficiencia | L17: META | N17: 0.85
C18: FORMULA | E18: NUMERADOR | G18: Número de soluciones en uso * 100 | L18: UNIDAD DE MEDIDA | N18: Porcentual
E19: DENOMINADOR | G19: Total de soluciones habilitadas
C20: TENDENCIA | E20: Positiva | H20: NIVEL DE SEGREGACIÓN * | J20: No Aplica | L20: ESCALA
L21: Deficiente | M21: Aceptable | N21: Bueno | O21: Excelente
L22: 0% - 59,9% | M22: 60% - 74,9% | N22: 75% - 84,9% | O22: 85% - 100%
C23: ORIGEN DE DATOS NUMERADOR | E23: Base de datos en Excel alimentada por monitoreo realizado por Área de Desarrollo | H23: FRECUENCIA DE LA MEDICIÓN | J23: SEMESTRAL | L23: FRECUENCIA DE RESULTADO | N23: SEMESTRAL
C24: ORIGEN DE DATOS DENOMINADOR | E24: Catálogo de sistemas de información
C26: RESULTADOS
J27: ANÁLISIS DE DATOS
J34: ACCIÓN FORMULADA
J41: RESPONSABLE
J42: =E14 -> Dirección de Sistemas y Tecnología
C45: PERIODO DE EVALUACIÓN
C46: MES | D46: =IF(J23="MENSUAL","ENERO",IF(J23="TRIMESTRAL","MARZO",IF(J23="SEMESTRAL","JUNIO",IF(J23="ANUAL",YEAR(TODAY()),"")))) -> JUNIO | E46: =IF(J23="MENSUAL","FEBRERO",IF(J23="TRIMESTRAL","JUNIO",IF(J23="SEMESTRAL","DICIEMBRE",""))) -> DICIEMBRE | F46: =IF(J23="MENSUAL","MARZO",IF(J23="TRIMESTRAL","SEPTIEMBRE","")) ->  | G46: =IF(J23="MENSUAL","ABRIL",IF(J23="TRIMESTRAL","DICIEMBRE","")) ->  | H46: =IF(J23="MENSUAL","MAYO","") ->  | I46: =IF(J23="MENSUAL","JUNIO","") ->  | J46: =IF(J23="MENSUAL","JULIO","") ->  | K46: =IF(J23="MENSUAL","AGOSTO","") ->  | L46: =IF(J23="MENSUAL","SEPTIEMBRE","") ->  | M46: =IF(J23="MENSUAL","OCTUBRE","") ->  | N46: =IF(J23="MENSUAL","NOVIEMBRE","") ->  | O46: =IF(J23="MENSUAL","DICIEMBRE","") -> 
C47: =G18 -> Número de soluciones en uso * 100
C48: =G19 -> Total de soluciones habilitadas
C49: VALOR | D49: =IFERROR(IF($E$17=1,D47/D48,IF($E$17=2,D47,"")),"") ->  | E49: =IFERROR(IF($E$17=1,E47/E48,IF($E$17=2,E47,"")),"") ->  | F49: =IFERROR(IF($E$17=1,F47/F48,IF($E$17=2,F47,"")),"") -> 
C50: META PONDERADA | D50: =IF(AND(N23="ANUAL",J23="MENSUAL"),N17/12,IF(AND(N23="ANUAL",J23="TRIMESTRAL"),N17/4,IF(AND(N23="ANUAL",J23="SEMESTRAL"),N17/2,IF(AND(N23="ANUAL",J23="ANUAL"),N17,IF(AND(N23="SEMESTRAL",J23="MENSUAL"),N17/6,IF(AND(N23="SEMESTRAL",J23="TRIMESTRAL"),N17/2,IF(AND(N23="SEMESTRAL",J23="SEMESTRAL"),N17,IF(AND(N23="SEMESTRAL",J23="ANUAL"),"REVISAR FRECUENCIAS",IF(AND(N23="TRIMESTRAL",J23="MENSUAL"),N17/3,IF(AND(N23="TRIMESTRAL",J23="TRIMESTRAL"),N17,IF(AND(N23="TRIMESTRAL",J23="SEMESTRAL"),"REVISAR FRECUENCIAS",IF(AND(N23="TRIMESTRAL",J23="ANUAL"),"REVISAR FRECUENCIAS",IF(AND(N23="MENSUAL",J23="MENSUAL"),N17,IF(AND(N23="MENSUAL",J23="TRIMESTRAL"),"REVISAR FRECUENCIAS",IF(AND(N23="MENSUAL",J23="SEMESTRAL"),"REVISAR FRECUENCIAS",IF(AND(N23="MENSUAL",J23="ANUAL"),"REVISAR FRECUENCIAS","")))))))))))))))) -> 0.85 | E50: =IF(AND(N23="ANUAL",J23="MENSUAL"),N17/12,IF(AND(N23="ANUAL",J23="TRIMESTRAL"),N17/4,IF(AND(N23="ANUAL",J23="SEMESTRAL"),N17/2,IF(AND(N23="ANUAL",J23="ANUAL"),N17,IF(AND(N23="SEMESTRAL",J23="MENSUAL"),N17/6,IF(AND(N23="SEMESTRAL",J23="TRIMESTRAL"),N17/2,IF(AND(N23="SEMESTRAL",J23="SEMESTRAL"),N17,IF(AND(N23="SEMESTRAL",J23="ANUAL"),"REVISAR FRECUENCIAS",IF(AND(N23="TRIMESTRAL",J23="MENSUAL"),N17/3,IF(AND(N23="TRIMESTRAL",J23="TRIMESTRAL"),N17,IF(AND(N23="TRIMESTRAL",J23="SEMESTRAL"),"REVISAR FRECUENCIAS",IF(AND(N23="TRIMESTRAL",J23="ANUAL"),"REVISAR FRECUENCIAS",IF(AND(N23="MENSUAL",J23="MENSUAL"),N17,IF(AND(N23="MENSUAL",J23="TRIMESTRAL"),"REVISAR FRECUENCIAS",IF(AND(N23="MENSUAL",J23="SEMESTRAL"),"REVISAR FRECUENCIAS",IF(AND(N23="MENSUAL",J23="ANUAL"),"REVISAR FRECUENCIAS","")))))))))))))))) -> 0.85 | F50: =IF(AND(N23="ANUAL",J23="MENSUAL"),N17/12+E50,IF(AND(N23="ANUAL",J23="TRIMESTRAL"),N17/4+E50,IF(AND(N23="SEMESTRAL",J23="MENSUAL"),N17/6+E50,IF(AND(N23="SEMESTRAL",J23="TRIMESTRAL"),N17/2,IF(AND(N23="TRIMESTRAL",J23="MENSUAL"),N17/3+E50,IF(AND(N23="TRIMESTRAL",J23="TRIMESTRAL"),N17,IF(AND(N23="MENSUAL",J23="MENSUAL"),N17,""))))))) ->  | G50: =IF(AND(N23="ANUAL",J23="MENSUAL"),N17/12+F50,IF(AND(N23="ANUAL",J23="TRIMESTRAL"),N17/4+F50,IF(AND(N23="SEMESTRAL",J23="MENSUAL"),N17/6+F50,IF(AND(N23="SEMESTRAL",J23="TRIMESTRAL"),N17/2+F50,IF(AND(N23="TRIMESTRAL",J23="MENSUAL"),N17/3,IF(AND(N23="TRIMESTRAL",J23="TRIMESTRAL"),N17,IF(AND(N23="MENSUAL",J23="MENSUAL"),N17,""))))))) ->  | H50: =IF(AND($N$23="ANUAL",$J$23="MENSUAL"),$N$17/12+G50,IF(AND(N23="SEMESTRAL",J23="MENSUAL"),N17/6+G50,IF(AND(N23="TRIMESTRAL",J23="MENSUAL"),N17/3+G50,IF(AND(N23="MENSUAL",J23="MENSUAL"),N17,"")))) ->  | I50: =IF(AND($N$23="ANUAL",$J$23="MENSUAL"),$N$17/12+H50,IF(AND(N23="SEMESTRAL",J23="MENSUAL"),N17/6+H50,IF(AND(N23="TRIMESTRAL",J23="MENSUAL"),N17/3+H50,IF(AND(N23="MENSUAL",J23="MENSUAL"),N17,"")))) ->  | J50: =IF(AND($N$23="ANUAL",$J$23="MENSUAL"),$N$17/12+I50,IF(AND(N23="SEMESTRAL",J23="MENSUAL"),N17/6,IF(AND(N23="TRIMESTRAL",J23="MENSUAL"),N17/3,IF(AND(N23="MENSUAL",J23="MENSUAL"),N17,"")))) ->  | K50: =IF(AND($N$23="ANUAL",$J$23="MENSUAL"),$N$17/12+J50,IF(AND(N23="SEMESTRAL",J23="MENSUAL"),N17/6+J50,IF(AND(N23="TRIMESTRAL",J23="MENSUAL"),N17/3+J50,IF(AND(N23="MENSUAL",J23="MENSUAL"),N17,"")))) ->  | L50: =IF(AND($N$23="ANUAL",$J$23="MENSUAL"),$N$17/12+K50,IF(AND(N23="SEMESTRAL",J23="MENSUAL"),N17/6+K50,IF(AND(N23="TRIMESTRAL",J23="MENSUAL"),N17/3+K50,IF(AND(N23="MENSUAL",J23="MENSUAL"),N17,"")))) ->  | M50: =IF(AND($N$23="ANUAL",$J$23="MENSUAL"),$N$17/12+L50,IF(AND(N23="SEMESTRAL",J23="MENSUAL"),N17/6+L50,IF(AND(N23="TRIMESTRAL",J23="MENSUAL"),N17/3,IF(AND(N23="MENSUAL",J23="MENSUAL"),N17,"")))) ->  | N50: =IF(AND($N$23="ANUAL",$J$23="MENSUAL"),$N$17/12+M50,IF(AND(N23="SEMESTRAL",J23="MENSUAL"),N17/6+M50,IF(AND(N23="TRIMESTRAL",J23="MENSUAL"),N17/3+M50,IF(AND(N23="MENSUAL",J23="MENSUAL"),N17,"")))) ->  | O50: =IF(AND($N$23="ANUAL",$J$23="MENSUAL"),$N$17/12+N50,IF(AND(N23="SEMESTRAL",J23="MENSUAL"),N17/6+N50,IF(AND(N23="TRIMESTRAL",J23="MENSUAL"),N17/3+N50,IF(AND(N23="MENSUAL",J23="MENSUAL"),N17,"")))) -> 
C52: NIVEL DE SEGREGACIÓN *
C53: UNIDAD SEGREGADA (Ej. Facultad, Programa Académico, Área) | G53: RESULTADO | K53: ANÁLISIS DE DATOS SEGREGADO
C62: Diagonal 18 No. 20-29 Fusagasugá – Cundinamarca Teléfono (601) 8281483 Línea Gratuita 018000180414 www.ucundinamarca.edu.co E-mail: info@ucundinamarca.edu.co NIT: 890.680.062-2
C63: Documento controlado por el Sistema de Gestión de la Calidad Asegúrese que corresponde a la última versión consultando el Portal Institucional
G72: Estratégico | J72: Eficacia
G73: Misional | J73: Eficiencia
G74: Apoyo | J74: Acreditación
G75: Seguimiento, Medición, Análisis y Evaluación | J75: Positiva
G76: Direccionamiento Estratégico | J76: Negativa
G77: Planeación Institucional | J77: Por Unidad Regional
G78: Proyectos Especiales y Relaciones Interinstitucionales | J78: Por Facultad
G79: Sistemas Integrados | J79: Por Programa Académico
G80: Autoevaluación y Acreditación | J80: Por área
G81: Comunicaciones | J81: Por Laboratorio
G82: Formación y Aprendizaje | J82: Otros
G83: Ciencia, Tecnología e Innovación | J83: No Aplica
G84: Interacción Social Universitaria
G85: Bienestar Universitario
G86: Admisiones y Registro
G87: Graduados
G88: Dialogando con el Mundo
G89: Talento Humano
G90: Jurídica
G91: Financiera
G92: Sistemas y Tecnología
G93: Bienes y Servicios
G94: Documental
G95: Apoyo Académico
G96: Control Interno
G97: Control Disciplinario
G98: Servicio de Atención al Ciudadano

Sheet ASI-2
B2: REGRESAR
E5: MACROPROCESO ESTRATÉGICO | M5: CÓDIGO: ESGr027
E6: PROCESO GESTIÓN SISTEMAS INTEGRADOS - CALIDAD | M6: VERSIÓN: 8
E7: MATRIZ DE MEDICIÓN Y SEGUIMIENTO A LOS PROCESOS DE GESTIÓN | M7: VIGENCIA: 2023-07-28
M8: PÁGINA: 3 de 6
C10: FICHA DE INDICADOR
C12: MACROPROCESO | E12: Apoyo | I12: NOMBRE DEL INDICADOR | K12: Ejecución de mantenimientos preventivos a recursos informáticos de custodia de la Dirección de Sistemas y Tecnología.
C13: PROCESO GESTIÓN | E13: Sistemas y Tecnología
C14: RESPONSABLE DE MEDICIÓN | E14: Dirección de Sistemas y Tecnología
C16: 1. COMPORTAMIENTO DE INDICADOR
C17: CLASIFICACIÓN DE LA MEDICIÓN | E17: 1 | H17: TIPO DE INDICADOR | J17: Eficiencia | L17: META | N17: 0.8
C18: FORMULA | E18: NUMERADOR | G18: Número de actividades ejecutadas * 100 | L18: UNIDAD DE MEDIDA | N18: Porcentual
E19: DENOMINADOR | G19: Total de actividades planeadas
C20: TENDENCIA | E20: Positiva | H20: NIVEL DE SEGREGACIÓN * | J20: Por Unidad Regional | L20: ESCALA
L21: Deficiente | M21: Aceptable | N21: Bueno | O21: Excelente
L22: 0% - 59,9% | M22: 60% - 70% | N22: 71% - 79,9% | O22: 80% - 100%
C23: ORIGEN DE DATOS NUMERADOR | E23: Formato Cronograma de mantenimiento | H23: FRECUENCIA DE LA MEDICIÓN | J23: TRIMESTRAL | L23: FRECUENCIA DE RESULTADO | N23: SEMESTRAL
C24: ORIGEN DE DATOS DENOMINADOR | E24: Formato Cronograma de mantenimiento
C26: RESULTADOS
J27: ANÁLISIS DE DATOS
J28: El cronograma de mantenimientos preventivos para los equipos de cómputo del área administraba de las seccionales, extensiones y sede principal, se diseña semestral, sin embargo, el reporte del indicador es trimestral. Para la medición del primer trimestre de la vigencia 2025 se planificaron 397 equipos comprendidos en las Unidades Regionales Fusagasugá, Ubaté, Girardot, Chía, Zipaquirá, Facatativá, Soacha y Bogotá, sin embargo, se lograron ejecutar 381 mantenimientos preventivos arrojando un porcentaje de eficacia del 96% con una medición EXCELENTE según la escala del indicador. Por lo anterior, se continuó con las estrategias de programación de los mantenimientos preventivos del primer trimestre, en donde se tuvo en cuenta las siguientes consideraciones. 1. Para esta vigencia se dimensionó la clase de mantenimiento preventivo tipo software y hardware para los recursos informáticos. Por último, es importante mencionar que este indicador obedece al Procedimiento ASIP18 - Soporte Mantenimiento y Monitoreo a la Infraestructura de Red y Recursos Tecnológicos, perteneciente a la Dirección de Sistemas y Tecnología, el cual aplica para el desarrollo de las actividades de cada uno de los Ingenieros que representa a la Dirección en cada seccional, extensión y sede principal: *Sede Fusagasugá *Seccional Ubaté *Seccional Girardot *Extensión Chía *Extensión Zipaquirá *Extensión Facatativá *Extensión Soacha *Oficina Bogotá
J34: ACCIÓN FORMULADA
J35: Se mantiene el porcentaje de efectividad, de acuerdo con el procedimiento ASIP18-Soporte, Mantenimiento y Monitoreo a la Infraestructura de Red y Recursos Tecnológicos, dada la planificación de los mantenimientos del Área de Servicios Tecnológicos en las Unidades Regionales de Fusagasugá, Girardot, Zipaquirá, Chía, Ubaté, Facatativá, Soacha y Bogotá se cumple con las metas establecidas para este primer trimestre frente a la ejecución de los mantenimientos preventivos de hardaware y software.
J41: RESPONSABLE
J42: =E14 -> Dirección de Sistemas y Tecnología
C45: PERIODO DE EVALUACIÓN
C46: MES | D46: =IF(J23="MENSUAL","ENERO",IF(J23="TRIMESTRAL","MARZO",IF(J23="SEMESTRAL","JUNIO",IF(J23="ANUAL",YEAR(TODAY()),"")))) -> MARZO | E46: =IF(J23="MENSUAL","FEBRERO",IF(J23="TRIMESTRAL","JUNIO",IF(J23="SEMESTRAL","DICIEMBRE",""))) -> JUNIO | F46: =IF(J23="MENSUAL","MARZO",IF(J23="TRIMESTRAL","SEPTIEMBRE","")) -> SEPTIEMBRE | G46: =IF(J23="MENSUAL","ABRIL",IF(J23="TRIMESTRAL","DICIEMBRE","")) -> DICIEMBRE | H46: =IF(J23="MENSUAL","MAYO","") ->  | I46: =IF(J23="MENSUAL","JUNIO","") ->  | J46: =IF(J23="MENSUAL","JULIO","") ->  | K46: =IF(J23="MENSUAL","AGOSTO","") ->  | L46: =IF(J23="MENSUAL","SEPTIEMBRE","") ->  | M46: =IF(J23="MENSUAL","OCTUBRE","") ->  | N46: =IF(J23="MENSUAL","NOVIEMBRE","") ->  | O46: =IF(J23="MENSUAL","DICIEMBRE","") -> 
C47: =G18 -> Número de actividades ejecutadas * 100 | D47: 381
C48: =G19 -> Total de actividades planeadas | D48: 397
C49: VALOR | D49: =IFERROR(IF($E$17=1,D47/D48,IF($E$17=2,D47,"")),"") -> 0.959697733 | E49: =IFERROR(IF($E$17=1,E47/E48,IF($E$17=2,E47,"")),"") ->  | F49: =IFERROR(IF($E$17=1,F47/F48,IF($E$17=2,F47,"")),"") ->  | G49: =IFERROR(IF($E$17=1,G47/G48,IF($E$17=2,G47,"")),"") -> 
C50: META PONDERADA | D50: =IF(AND(N23="ANUAL",J23="MENSUAL"),N17/12,IF(AND(N23="ANUAL",J23="TRIMESTRAL"),N17/4,IF(AND(N23="ANUAL",J23="SEMESTRAL"),N17/2,IF(AND(N23="ANUAL",J23="ANUAL"),N17,IF(AND(N23="SEMESTRAL",J23="MENSUAL"),N17/6,IF(AND(N23="SEMESTRAL",J23="TRIMESTRAL"),N17/2,IF(AND(N23="SEMESTRAL",J23="SEMESTRAL"),N17,IF(AND(N23="SEMESTRAL",J23="ANUAL"),"REVISAR FRECUENCIAS",IF(AND(N23="TRIMESTRAL",J23="MENSUAL"),N17/3,IF(AND(N23="TRIMESTRAL",J23="TRIMESTRAL"),N17,IF(AND(N23="TRIMESTRAL",J23="SEMESTRAL"),"REVISAR FRECUENCIAS",IF(AND(N23="TRIMESTRAL",J23="ANUAL"),"REVISAR FRECUENCIAS",IF(AND(N23="MENSUAL",J23="MENSUAL"),N17,IF(AND(N23="MENSUAL",J23="TRIMESTRAL"),"REVISAR FRECUENCIAS",IF(AND(N23="MENSUAL",J23="SEMESTRAL"),"REVISAR FRECUENCIAS",IF(AND(N23="MENSUAL",J23="ANUAL"),"REVISAR FRECUENCIAS","")))))))))))))))) -> 0.4 | E50: =IF(AND(N23="ANUAL",J23="MENSUAL"),N17/12+D50,IF(AND(N23="ANUAL",J23="TRIMESTRAL"),N17/4+D50,IF(AND(N23="ANUAL",J23="SEMESTRAL"),N17/2+D50,IF(AND(N23="SEMESTRAL",J23="MENSUAL"),N17/6+D50,IF(AND(N23="SEMESTRAL",J23="TRIMESTRAL"),N17/2+D50,IF(AND(N23="SEMESTRAL",J23="SEMESTRAL"),N17,IF(AND(N23="TRIMESTRAL",J23="MENSUAL"),N17/3+D50,IF(AND(N23="TRIMESTRAL",J23="TRIMESTRAL"),N17,IF(AND(N23="MENSUAL",J23="MENSUAL"),N17,""))))))))) -> 0.8 | F50: =IF(AND(N23="ANUAL",J23="MENSUAL"),N17/12+E50,IF(AND(N23="ANUAL",J23="TRIMESTRAL"),N17/4+E50,IF(AND(N23="SEMESTRAL",J23="MENSUAL"),N17/6+E50,IF(AND(N23="SEMESTRAL",J23="TRIMESTRAL"),N17/2,IF(AND(N23="TRIMESTRAL",J23="MENSUAL"),N17/3+E50,IF(AND(N23="TRIMESTRAL",J23="TRIMESTRAL"),N17,IF(AND(N23="MENSUAL",J23="MENSUAL"),N17,""))))))) -> 0.4 | G50: =IF(AND(N23="ANUAL",J23="MENSUAL"),N17/12+F50,IF(AND(N23="ANUAL",J23="TRIMESTRAL"),N17/4+F50,IF(AND(N23="SEMESTRAL",J23="MENSUAL"),N17/6+F50,IF(AND(N23="SEMESTRAL",J23="TRIMESTRAL"),N17/2+F50,IF(AND(N23="TRIMESTRAL",J23="MENSUAL"),N17/3,IF(AND(N23="TRIMESTRAL",J23="TRIMESTRAL"),N17,IF(AND(N23="MENSUAL",J23="MENSUAL"),N17,""))))))) -> 0.8 | H50: =IF(AND($N$23="ANUAL",$J$23="MENSUAL"),$N$17/12+G50,IF(AND(N23="SEMESTRAL",J23="MENSUAL"),N17/6+G50,IF(AND(N23="TRIMESTRAL",J23="MENSUAL"),N17/3+G50,IF(AND(N23="MENSUAL",J23="MENSUAL"),N17,"")))) ->  | I50: =IF(AND($N$23="ANUAL",$J$23="MENSUAL"),$N$17/12+H50,IF(AND(N23="SEMESTRAL",J23="MENSUAL"),N17/6+H50,IF(AND(N23="TRIMESTRAL",J23="MENSUAL"),N17/3+H50,IF(AND(N23="MENSUAL",J23="MENSUAL"),N17,"")))) ->  | J50: =IF(AND($N$23="ANUAL",$J$23="MENSUAL"),$N$17/12+I50,IF(AND(N23="SEMESTRAL",J23="MENSUAL"),N17/6,IF(AND(N23="TRIMESTRAL",J23="MENSUAL"),N17/3,IF(AND(N23="MENSUAL",J23="MENSUAL"),N17,"")))) ->  | K50: =IF(AND($N$23="ANUAL",$J$23="MENSUAL"),$N$17/12+J50,IF(AND(N23="SEMESTRAL",J23="MENSUAL"),N17/6+J50,IF(AND(N23="TRIMESTRAL",J23="MENSUAL"),N17/3+J50,IF(AND(N23="MENSUAL",J23="MENSUAL"),N17,"")))) ->  | L50: =IF(AND($N$23="ANUAL",$J$23="MENSUAL"),$N$17/12+K50,IF(AND(N23="SEMESTRAL",J23="MENSUAL"),N17/6+K50,IF(AND(N23="TRIMESTRAL",J23="MENSUAL"),N17/3+K50,IF(AND(N23="MENSUAL",J23="MENSUAL"),N17,"")))) ->  | M50: =IF(AND($N$23="ANUAL",$J$23="MENSUAL"),$N$17/12+L50,IF(AND(N23="SEMESTRAL",J23="MENSUAL"),N17/6+L50,IF(AND(N23="TRIMESTRAL",J23="MENSUAL"),N17/3,IF(AND(N23="MENSUAL",J23="MENSUAL"),N17,"")))) ->  | N50: =IF(AND($N$23="ANUAL",$J$23="MENSUAL"),$N$17/12+M50,IF(AND(N23="SEMESTRAL",J23="MENSUAL"),N17/6+M50,IF(AND(N23="TRIMESTRAL",J23="MENSUAL"),N17/3+M50,IF(AND(N23="MENSUAL",J23="MENSUAL"),N17,"")))) ->  | O50: =IF(AND($N$23="ANUAL",$J$23="MENSUAL"),$N$17/12+N50,IF(AND(N23="SEMESTRAL",J23="MENSUAL"),N17/6+N50,IF(AND(N23="TRIMESTRAL",J23="MENSUAL"),N17/3+N50,IF(AND(N23="MENSUAL",J23="MENSUAL"),N17,"")))) -> 
C52: NIVEL DE SEGREGACIÓN *
C53: UNIDAD SEGREGADA (Ej. Facultad, Programa Académico, Área) | G53: RESULTADO | K53: ANÁLISIS DE DATOS SEGREGADO
C54: Sede Fusagasugá | G54: 1 | K54: En relación con la Sede Fusagasugá, los resultados obtenidos para el cierre del primer trimestre se consideran excelentes, dado que se han cumplido las actividades en su totalidad (85% de efectividad), el cual corresponde a un total de 223 actividades ejecutadas de las 232 programadas. Se hace la aclaración que los 9 equipos pendientes se programaron 1 de la oficina de Admisiones, 1 de la oficina de Tesorería y 2 de la Facultad de Agropecuarias. De la Oficina de Comunicaciones se solicitaron conceptos técnicos para dos equipos y de la Oficina de Archivo se realizaron 3 traslados. De igual manera se realiza 1 equipo adicional Esto representa un avance para el cierre del primer trimestre.
C55: Seccional Girardot | G55: 1 | K55: En relación con la Seccional Girardot, los resultados obtenidos para el cierre del primer trimestre se consideran excelentes, dado que se han cumplido las actividades en su totalidad (100% de efectividad), es decir, se han realizado 14 de los 14 mantenimientos programados.
C56: Seccional Ubaté | G56: 0.86 | K56: En relación con la Seccional Ubaté, los resultados obtenidos para el cierre del primer trimestre se consideran excelentes, dado que se consolidó un porcentaje de efectividad del 86%, se han realizado 37 de los 43 mantenimientos programados.
C57: Extensión Soacha | G57: 1 | K57: En relación con la Extensión Soacha, los resultados obtenidos para el cierre del primer trimestre se consideran excelentes, dado que se han cumplido las actividades en su totalidad (100% de efectividad), el cual corresponde a un total de 36 actividades ejecutadas de las 36 programadas.
C58: Extensión Facatativá | G58: 0 | K58: En relación con la Extensión Facatativá, los resultados obtenidos para el cierre del primer trimestre se consideran deficiente, ya que el Ingeniero se encuentra en proceso de contratación para este respectivo semestre.
C59: Extensión Chía | G59: 1 | K59: En relación con la Extensión Chía, los resultados obtenidos para el cierre del primer trimestre se consideran excelentes, dado que se consolidó un porcentaje de efectividad del 100% con 36 actividades programadas y 36 actividades ejecutadas.
C60: Oficinas Bogotá | G60: 1 | K60: En relación con la Oficina de Bogotá, los resultados obtenidos para el cierre del primer trimestre se consideran excelentes, dado que se consolidó un porcentaje de efectividad del 100%, se han realizado 6 de los 6 mantenimientos programados.
C61: Extensión Zipaquirá | G61: 1 | K61: "En la extensión Zipaquirá los resultados consolidados del cierre del primer trimestre representan una escala de excelente con 100% de efectividad, lo cual significa que se ejecutaron 29 actividades de 30 programadas. De igual manera se realiza 1 equipo adicional. Esto representa un avance para el cierre del primer trimestre.
C63: Diagonal 18 No. 20-29 Fusagasugá – Cundinamarca Teléfono (601) 8281483 Línea Gratuita 018000180414 www.ucundinamarca.edu.co E-mail: info@ucundinamarca.edu.co NIT: 890.680.062-2
C64: Documento controlado por el Sistema de Gestión de la Calidad Asegúrese que corresponde a la última versión consultando el Portal Institucional

Sheet ASI-3
B2: REGRESAR
E5: MACROPROCESO ESTRATÉGICO | M5: CÓDIGO: ESGr027
E6: PROCESO GESTIÓN SISTEMAS INTEGRADOS - CALIDAD | M6: VERSIÓN: 8
E7: MATRIZ DE MEDICIÓN Y SEGUIMIENTO A LOS PROCESOS DE GESTIÓN | M7: VIGENCIA: 2023-07-28
M8: PÁGINA: 4 de 6
C10: FICHA DE INDICADOR
C12: MACROPROCESO | E12: Apoyo | I12: NOMBRE DEL INDICADOR | K12: Ejecución de mantenimientos preventivos a cuartos de telecomunicaciones (TR's) y centros de datos (CD's) de la sede seccionales y extensiones en custodia de la Dirección de Sistemas y Tecnología
C13: PROCESO GESTIÓN | E13: Sistemas y Tecnología
C14: RESPONSABLE DE MEDICIÓN | E14: Dirección de Sistemas y Tecnología
C16: 1. COMPORTAMIENTO DE INDICADOR
C17: CLASIFICACIÓN DE LA MEDICIÓN | E17: 1 | H17: TIPO DE INDICADOR | J17: Eficiencia | L17: META | N17: 0.85
C18: FORMULA | E18: NUMERADOR | G18: Número de actividades ejecutadas*100 | L18: UNIDAD DE MEDIDA | N18: Porcentual
E19: DENOMINADOR | G19: Total de actividades planeadas
C20: TENDENCIA | E20: Positiva | H20: NIVEL DE SEGREGACIÓN * | J20: Por Unidad Regional | L20: ESCALA
L21: Deficiente | M21: Aceptable | N21: Bueno | O21: Excelente
L22: 0% - 59,9% | M22: 60% - 74,9% | N22: 75% - 84,9% | O22: 85% - 100%
C23: ORIGEN DE DATOS NUMERADOR | E23: Formato Cronograma de mantenimiento | H23: FRECUENCIA DE LA MEDICIÓN | J23: TRIMESTRAL | L23: FRECUENCIA DE RESULTADO | N23: SEMESTRAL
C24: ORIGEN DE DATOS DENOMINADOR | E24: Formato Cronograma de mantenimiento
C26: RESULTADOS
J27: ANÁLISIS DE DATOS
J28: De acuerdo con la proyección de los cronogramas de mantenimientos preventivos programados para los cuartos de telecomunicaciones (TR´s) y centros de datos (CD's) de la sede Fusagasugá, así como de la Sede Administrativa en Bogotá, Seccional Girardot, Ubaté, y las extensiones de Soacha, Chía y Zipaquirá, en custodia de la Dirección de Sistemas y Tecnología en donde se especificaron las fechas establecidas para el desarrollo de las actividades comprendidas entre los meses de Octubre, Noviembre y Diciembre. Durante este primer trimestre, se planificaron un total de 67 actividades, las cuales fueron ejecutadas en su totalidad, alcanzando un índice de efectividad del 100%, lo que coloca este desempeño en la categoría de Excelente. Es fundamental mencionar que, en cada sesión de mantenimiento, se realizó una limpieza tanto en el exterior como en el interior de los racks. Esta limpieza fue esencial para eliminar el polvo acumulado en los equipos y paneles, lo que contribuye al correcto funcionamiento y a la prolongación de la vida útil de los equipos. Adicionalmente, se llevó a cabo la verificación de los puertos troncales y el DCHP Snooping, lo cual es crucial para asegurar la correcta configuración y seguridad de la red. También se realizó el cambio de contraseñas de los dispositivos, una práctica fundamental para mantener la seguridad de la información. Como parte del protocolo de mantenimiento, se efectuó una copia de seguridad o Backup de cada uno de los dispositivos de red (Switch) ubicados en cada rack, asegurando así que los datos se encuentren protegidos y disponibles ante cualquier eventualidad. Como evidencia de este proceso, se dejó un registro en el formato ASIF060 LISTA DE VERIFICACIÓN BACKUPS Y LIMPIEZA DE CD´S Y TR´S, donde se especifican todas las actividades realizadas, incluyendo la limpieza de los CD’s y TR’s, el proceso de Backup, el cambio de contraseñas y la bitácora de los switches. Todas estas acciones se realizaron en cumplimiento del Manual ASIM017 "SERVICIOS TECNOLÓGICOS", que establece las directrices y procedimientos a seguir por la Dirección de Sistemas y Tecnología. Es importante destacar que, para este corte específico, no se llevaron a cabo mantenimientos preventivos en los cuartos de telecomunicaciones (TR’s) o centros de datos (CD’s) de la extensión de Facatativá. Esto debido a la falta de un contrato activo con el ingeniero responsable para ejecutar el proceso y cumplir con el cronograma de mantenimiento establecido. La ausencia de estos mantenimientos en dicha sede resalta la importancia de contar con un marco contractual adecuado que garantice la continuidad de las actividades programadas y la operatividad de las infraestructuras tecnológicas.
J34: ACCIÓN FORMULADA
J35: Este indicador se mide trimestralmente y atiende al Procedimiento ASIP18 "Soporte, Mantenimiento y Monitoreo a la Infraestructura de Red y Recursos Tecnológicos", dada la planificación de los mantenimientos el Área de Servicios Tecnológicos en la unidad regional de Fusagasugá, se da un cumplimiento Excelente con las metas establecidas para este primer trimestre frente a la ejecución de los mantenimientos preventivos de los centros de datos y cuartos de telecomunicaciones.
J41: RESPONSABLE
J42: =E14 -> Dirección de Sistemas y Tecnología
C45: PERIODO DE EVALUACIÓN
C46: MES | D46: =IF(J23="MENSUAL","ENERO",IF(J23="TRIMESTRAL","MARZO",IF(J23="SEMESTRAL","JUNIO",IF(J23="ANUAL",YEAR(TODAY()),"")))) -> MARZO | E46: =IF(J23="MENSUAL","FEBRERO",IF(J23="TRIMESTRAL","JUNIO",IF(J23="SEMESTRAL","DICIEMBRE",""))) -> JUNIO | F46: =IF(J23="MENSUAL","MARZO",IF(J23="TRIMESTRAL","SEPTIEMBRE","")) -> SEPTIEMBRE | G46: =IF(J23="MENSUAL","ABRIL",IF(J23="TRIMESTRAL","DICIEMBRE","")) -> DICIEMBRE | H46: =IF(J23="MENSUAL","MAYO","") ->  | I46: =IF(J23="MENSUAL","JUNIO","") ->  | J46: =IF(J23="MENSUAL","JULIO","") ->  | K46: =IF(J23="MENSUAL","AGOSTO","") ->  | L46: =IF(J23="MENSUAL","SEPTIEMBRE","") ->  | M46: =IF(J23="MENSUAL","OCTUBRE","") ->  | N46: =IF(J23="MENSUAL","NOVIEMBRE","") ->  | O46: =IF(J23="MENSUAL","DICIEMBRE","") -> 
C47: =G18 -> Número de actividades ejecutadas*100 | D47: 67
C48: =G19 -> Total de actividades planeadas | D48: 67
C49: VALOR | D49: =IFERROR(IF($E$17=1,D47/D48,IF($E$17=2,D47,"")),"") -> 1 | E49: =IFERROR(IF($E$17=1,E47/E48,IF($E$17=2,E47,"")),"") -> 
C50: META PONDERADA | D50: =IF(AND(N23="ANUAL",J23="MENSUAL"),N17/12,IF(AND(N23="ANUAL",J23="TRIMESTRAL"),N17/4,IF(AND(N23="ANUAL",J23="SEMESTRAL"),N17/2,IF(AND(N23="ANUAL",J23="ANUAL"),N17,IF(AND(N23="SEMESTRAL",J23="MENSUAL"),N17/6,IF(AND(N23="SEMESTRAL",J23="TRIMESTRAL"),N17/2,IF(AND(N23="SEMESTRAL",J23="SEMESTRAL"),N17,IF(AND(N23="SEMESTRAL",J23="ANUAL"),"REVISAR FRECUENCIAS",IF(AND(N23="TRIMESTRAL",J23="MENSUAL"),N17/3,IF(AND(N23="TRIMESTRAL",J23="TRIMESTRAL"),N17,IF(AND(N23="TRIMESTRAL",J23="SEMESTRAL"),"REVISAR FRECUENCIAS",IF(AND(N23="TRIMESTRAL",J23="ANUAL"),"REVISAR FRECUENCIAS",IF(AND(N23="MENSUAL",J23="MENSUAL"),N17,IF(AND(N23="MENSUAL",J23="TRIMESTRAL"),"REVISAR FRECUENCIAS",IF(AND(N23="MENSUAL",J23="SEMESTRAL"),"REVISAR FRECUENCIAS",IF(AND(N23="MENSUAL",J23="ANUAL"),"REVISAR FRECUENCIAS","")))))))))))))))) -> 0.425 | E50: =IF(AND(N23="ANUAL",J23="MENSUAL"),N17/12+D50,IF(AND(N23="ANUAL",J23="TRIMESTRAL"),N17/4+D50,IF(AND(N23="ANUAL",J23="SEMESTRAL"),N17/2+D50,IF(AND(N23="SEMESTRAL",J23="MENSUAL"),N17/6+D50,IF(AND(N23="SEMESTRAL",J23="TRIMESTRAL"),N17/2+D50,IF(AND(N23="SEMESTRAL",J23="SEMESTRAL"),N17,IF(AND(N23="TRIMESTRAL",J23="MENSUAL"),N17/3+D50,IF(AND(N23="TRIMESTRAL",J23="TRIMESTRAL"),N17,IF(AND(N23="MENSUAL",J23="MENSUAL"),N17,""))))))))) -> 0.85 | F50: =IF(AND(N23="ANUAL",J23="MENSUAL"),N17/12+E50,IF(AND(N23="ANUAL",J23="TRIMESTRAL"),N17/4+E50,IF(AND(N23="SEMESTRAL",J23="MENSUAL"),N17/6+E50,IF(AND(N23="SEMESTRAL",J23="TRIMESTRAL"),N17/2,IF(AND(N23="TRIMESTRAL",J23="MENSUAL"),N17/3+E50,IF(AND(N23="TRIMESTRAL",J23="TRIMESTRAL"),N17,IF(AND(N23="MENSUAL",J23="MENSUAL"),N17,""))))))) -> 0.425 | G50: =IF(AND(N23="ANUAL",J23="MENSUAL"),N17/12+F50,IF(AND(N23="ANUAL",J23="TRIMESTRAL"),N17/4+F50,IF(AND(N23="SEMESTRAL",J23="MENSUAL"),N17/6+F50,IF(AND(N23="SEMESTRAL",J23="TRIMESTRAL"),N17/2+F50,IF(AND(N23="TRIMESTRAL",J23="MENSUAL"),N17/3,IF(AND(N23="TRIMESTRAL",J23="TRIMESTRAL"),N17,IF(AND(N23="MENSUAL",J23="MENSUAL"),N17,""))))))) -> 0.85 | H50: =IF(AND($N$23="ANUAL",$J$23="MENSUAL"),$N$17/12+G50,IF(AND(N23="SEMESTRAL",J23="MENSUAL"),N17/6+G50,IF(AND(N23="TRIMESTRAL",J23="MENSUAL"),N17/3+G50,IF(AND(N23="MENSUAL",J23="MENSUAL"),N17,"")))) ->  | I50: =IF(AND($N$23="ANUAL",$J$23="MENSUAL"),$N$17/12+H50,IF(AND(N23="SEMESTRAL",J23="MENSUAL"),N17/6+H50,IF(AND(N23="TRIMESTRAL",J23="MENSUAL"),N17/3+H50,IF(AND(N23="MENSUAL",J23="MENSUAL"),N17,"")))) ->  | J50: =IF(AND($N$23="ANUAL",$J$23="MENSUAL"),$N$17/12+I50,IF(AND(N23="SEMESTRAL",J23="MENSUAL"),N17/6,IF(AND(N23="TRIMESTRAL",J23="MENSUAL"),N17/3,IF(AND(N23="MENSUAL",J23="MENSUAL"),N17,"")))) ->  | K50: =IF(AND($N$23="ANUAL",$J$23="MENSUAL"),$N$17/12+J50,IF(AND(N23="SEMESTRAL",J23="MENSUAL"),N17/6+J50,IF(AND(N23="TRIMESTRAL",J23="MENSUAL"),N17/3+J50,IF(AND(N23="MENSUAL",J23="MENSUAL"),N17,"")))) ->  | L50: =IF(AND($N$23="ANUAL",$J$23="MENSUAL"),$N$17/12+K50,IF(AND(N23="SEMESTRAL",J23="MENSUAL"),N17/6+K50,IF(AND(N23="TRIMESTRAL",J23="MENSUAL"),N17/3+K50,IF(AND(N23="MENSUAL",J23="MENSUAL"),N17,"")))) ->  | M50: =IF(AND($N$23="ANUAL",$J$23="MENSUAL"),$N$17/12+L50,IF(AND(N23="SEMESTRAL",J23="MENSUAL"),N17/6+L50,IF(AND(N23="TRIMESTRAL",J23="MENSUAL"),N17/3,IF(AND(N23="MENSUAL",J23="MENSUAL"),N17,"")))) ->  | N50: =IF(AND($N$23="ANUAL",$J$23="MENSUAL"),$N$17/12+M50,IF(AND(N23="SEMESTRAL",J23="MENSUAL"),N17/6+M50,IF(AND(N23="TRIMESTRAL",J23="MENSUAL"),N17/3+M50,IF(AND(N23="MENSUAL",J23="MENSUAL"),N17,"")))) ->  | O50: =IF(AND($N$23="ANUAL",$J$23="MENSUAL"),$N$17/12+N50,IF(AND(N23="SEMESTRAL",J23="MENSUAL"),N17/6+N50,IF(AND(N23="TRIMESTRAL",J23="MENSUAL"),N17/3+N50,IF(AND(N23="MENSUAL",J23="MENSUAL"),N17,"")))) -> 
C52: NIVEL DE SEGREGACIÓN *
C53: UNIDAD SEGREGADA (Ej. Facultad, Programa Académico, Área) | G53: RESULTADO | K53: ANÁLISIS DE DATOS SEGREGADO
C54: Sede Fusagasugá | G54: 1 | K54: Para la Sede Fusagasugá, dentro del cumplimiento de la meta se encuentra en la escala excelente, considerándose un gran logro obtenido, dado que la proyección para el primer trimestre es de 25 actividades con una ejecución del 100%, donde se incluye la Unidad Agroambiental la Esperanza.
C55: Seccional Girardot | G55: 1 | K55: Para la Seccional Girardot, dentro del cumplimiento de la meta se encuentra en la escala excelente, considerándose un gran logro obtenido; dado que la proyección para el primer trimestre es de 8 actividades con una ejecución del 100%.
C56: Extensión Soacha | G56: 1 | K56: Para la Extensión Soacha, dentro del cumplimiento de la meta se encuentra en la escala excelente, considerándose un gran logro obtenido; dado que la proyección para el primer trimestre es de 9 actividades con una ejecución del 100%.
C57: Extensión Chía | G57: 1 | K57: Para la Extensión Chía, dentro del cumplimiento de la meta se encuentra en la escala excelente, considerándose un gran logro obtenido; dado que la proyección para el primer trimestre es de 3 actividades con una ejecución del 100%.
C58: Extensión Zipaquirá | G58: 1 | K58: Para la Extensión Zipaquirá, dentro del cumplimiento de la meta se encuentra en la escala excelente, considerándose un gran logro obtenido; dado que la proyección para el primer trimestre es de 1 actividad con una ejecución del 100%.
C59: Extensión Zipaquirá Sede Nueva | G59: 1 | K59: Para la Extensión Zipaquirá, dentro del cumplimiento de la meta se encuentra en la escala excelente, considerándose un gran logro obtenido; dado que la proyección para el primer trimestre es de 9 actividad con una ejecución del 100%.
C60: Seccional Ubaté | G60: 1 | K60: Para la Seccional Ubaté, dentro del cumplimiento de la meta se encuentra en la escala excelente, considerándose un gran logro obtenido; dado que la proyección para el primer trimestre es de 11 actividades con una ejecución del 100%.
C61: Sede Bogotá | G61: 1 | K61: Para la Sede Administrativa de Bogotá, dentro del cumplimiento de la meta se encuentra en la escala excelente, considerándose un gran logro obtenido; dado que la proyección para el primer trimestre es de 1 actividades con una ejecución del 100%.
C63: Diagonal 18 No. 20-29 Fusagasugá – Cundinamarca Teléfono (601) 8281483 Línea Gratuita 018000180414 www.ucundinamarca.edu.co E-mail: info@ucundinamarca.edu.co NIT: 890.680.062-2
C64: Documento controlado por el Sistema de Gestión de la Calidad Asegúrese que corresponde a la última versión consultando el Portal Institucional
G73: Estratégico | J73: Eficacia
G74: Misional | J74: Eficiencia
G75: Apoyo | J75: Acreditación
G76: Seguimiento, Medición, Análisis y Evaluación | J76: Positiva
G77: Direccionamiento Estratégico | J77: Negativa
G78: Planeación Institucional | J78: Por Unidad Regional
G79: Proyectos Especiales y Relaciones Interinstitucionales | J79: Por Facultad
G80: Sistemas Integrados | J80: Por Programa Académico
G81: Autoevaluación y Acreditación | J81: Por área
G82: Comunicaciones | J82: Por Laboratorio
G83: Formación y Aprendizaje | J83: Otros
G84: Ciencia, Tecnología e Innovación | J84: No Aplica
G85: Interacción Social Universitaria
G86: Bienestar Universitario
G87: Admisiones y Registro
G88: Graduados
G89: Dialogando con el Mundo
G90: Talento Humano
G91: Jurídica
G92: Financiera
G93: Sistemas y Tecnología
G94: Bienes y Servicios
G95: Documental
G96: Apoyo Académico
G97: Control Interno
G98: Control Disciplinario
G99: Servicio de Atención al Ciudadano

Sheet ASI-4
B2: REGRESAR
E5: MACROPROCESO ESTRATÉGICO | M5: CÓDIGO: ESGr027
E6: PROCESO GESTIÓN SISTEMAS INTEGRADOS - CALIDAD | M6: VERSIÓN: 8
E7: MATRIZ DE MEDICIÓN Y SEGUIMIENTO A LOS PROCESOS DE GESTIÓN | M7: VIGENCIA: 2023-07-28
M8: PÁGINA: 5 de 6
C10: FICHA DE INDICADOR
C12: MACROPROCESO | E12: Apoyo | I12: NOMBRE DEL INDICADOR | K12: Efectividad del Servicio - Mesa de Servicios a un Clic
C13: PROCESO GESTIÓN | E13: Sistemas y Tecnología
C14: RESPONSABLE DE MEDICIÓN | E14: Dirección de Sistemas y Tecnología
C16: 1. COMPORTAMIENTO DE INDICADOR
C17: CLASIFICACIÓN DE LA MEDICIÓN | E17: 1 | H17: TIPO DE INDICADOR | J17: Eficiencia | L17: META | N17: 0.8
C18: FORMULA | E18: NUMERADOR | G18: Total de solicitudes atendidas en > o =10 días hábiles * 100 | L18: UNIDAD DE MEDIDA | N18: Porcentual
E19: DENOMINADOR | G19: Número de solicitudes
C20: TENDENCIA | E20: Positiva | H20: NIVEL DE SEGREGACIÓN * | J20: Otros | L20: ESCALA
L21: Deficiente | M21: Aceptable | N21: Bueno | O21: Excelente
L22: 0% - 54,9% | M22: 55% - 64,9% | N22: 65% - 79,9% | O22: 80% - 100%
C23: ORIGEN DE DATOS NUMERADOR | E23: Sistema Institucional de Solicitudes (SIS) Reporte Excel de solicitudes atendidas | H23: FRECUENCIA DE LA MEDICIÓN | J23: SEMESTRAL | L23: FRECUENCIA DE RESULTADO | N23: SEMESTRAL
C24: ORIGEN DE DATOS DENOMINADOR | E24: Sistema Institucional de Solicitudes (SIS) Reporte Excel de solicitudes recepcionadas
C26: RESULTADOS
J27: ANÁLISIS DE DATOS
J28: En el transcurso del primer semestre del año 2024, la Dirección de Sistemas y Tecnología en sus áreas adscritas Uso y Apropiación de los Sistemas de Información, recepciono 1.056 solicitudes de los diferentes servicios que ofrece esta área, de las cuales 939 se atendieron dentro de los primero 10 días hábiles. El Área de Servicios Tecnológicos, recepciono 423 solicitudes de los diferentes servicios que ofrece esta área, de las cuales 260 se atendieron dentro de los primeros 10 días hábiles. Es de resaltar que, dependiendo el servicio al cual se realizo la solicitud, así mismo es el tiempo de respuesta, esto teniendo en cuenta que cada servicio que ofrece la Dirección de Sistemas y Tecnología cuenta con un nivel de complejidad diferente, por lo tanto, las 184 solicitudes faltantes se respondieron fuera de los 10 días hábiles y 96 solicitudes se encuentran en seguimiento y en ejecución por los gestores de las áreas de esta Dirección.
J34: ACCIÓN FORMULADA
J35: Este indicador se mide semestral y atiende al manual ASIM018 - Mesa de Servicios a un Clic en sus categorías de Servicios Tecnológicos (mantenimiento de recursos tecnológicos - conectividad - acompañamiento a eventos - office 365 - gestión de proyectos) y Uso y Apropiación (roles y creación de usuarios - soportes - capacitaciones- reportes) dentro del apartado de recepción y atención de solicitudes de los servicios de Dirección de Sistemas y Tecnología. Por otra parte, la Dirección de Sistemas y Tecnología se encuentra trabajando para lograr los objetivos y así mejorar la eficacia en los tiempos de respuesta en los servicios que se ofrecen desde esta dirección apoyando los demás procesos de la institución y de esta manera mejorar la satisfacción del usuario final.
J41: RESPONSABLE
J42: =E14 -> Dirección de Sistemas y Tecnología
C45: PERIODO DE EVALUACIÓN
C46: MES | D46: =IF(J23="MENSUAL","ENERO",IF(J23="TRIMESTRAL","MARZO",IF(J23="SEMESTRAL","JUNIO",IF(J23="ANUAL",YEAR(TODAY()),"")))) -> JUNIO | E46: =IF(J23="MENSUAL","FEBRERO",IF(J23="TRIMESTRAL","JUNIO",IF(J23="SEMESTRAL","DICIEMBRE",""))) -> DICIEMBRE | F46: =IF(J23="MENSUAL","MARZO",IF(J23="TRIMESTRAL","SEPTIEMBRE","")) ->  | G46: =IF(J23="MENSUAL","ABRIL",IF(J23="TRIMESTRAL","DICIEMBRE","")) ->  | H46: =IF(J23="MENSUAL","MAYO","") ->  | I46: =IF(J23="MENSUAL","JUNIO","") ->  | J46: =IF(J23="MENSUAL","JULIO","") ->  | K46: =IF(J23="MENSUAL","AGOSTO","") ->  | L46: =IF(J23="MENSUAL","SEPTIEMBRE","") ->  | M46: =IF(J23="MENSUAL","OCTUBRE","") ->  | N46: =IF(J23="MENSUAL","NOVIEMBRE","") ->  | O46: =IF(J23="MENSUAL","DICIEMBRE","") -> 
C47: =G18 -> Total de solicitudes atendidas en > o =10 días hábiles * 100 | D47: 1199 | E47: 1437
C48: =G19 -> Número de solicitudes | D48: 1479 | E48: 1718
C49: VALOR | D49: =IFERROR(IF($E$17=1,D47/D48,IF($E$17=2,D47,"")),"") -> 0.8106828938 | E49: =IFERROR(IF($E$17=1,E47/E48,IF($E$17=2,E47,"")),"") -> 0.8364377183
C50: META PONDERADA | D50: =IF(AND(N23="ANUAL",J23="MENSUAL"),N17/12,IF(AND(N23="ANUAL",J23="TRIMESTRAL"),N17/4,IF(AND(N23="ANUAL",J23="SEMESTRAL"),N17/2,IF(AND(N23="ANUAL",J23="ANUAL"),N17,IF(AND(N23="SEMESTRAL",J23="MENSUAL"),N17/6,IF(AND(N23="SEMESTRAL",J23="TRIMESTRAL"),N17/2,IF(AND(N23="SEMESTRAL",J23="SEMESTRAL"),N17,IF(AND(N23="SEMESTRAL",J23="ANUAL"),"REVISAR FRECUENCIAS",IF(AND(N23="TRIMESTRAL",J23="MENSUAL"),N17/3,IF(AND(N23="TRIMESTRAL",J23="TRIMESTRAL"),N17,IF(AND(N23="TRIMESTRAL",J23="SEMESTRAL"),"REVISAR FRECUENCIAS",IF(AND(N23="TRIMESTRAL",J23="ANUAL"),"REVISAR FRECUENCIAS",IF(AND(N23="MENSUAL",J23="MENSUAL"),N17,IF(AND(N23="MENSUAL",J23="TRIMESTRAL"),"REVISAR FRECUENCIAS",IF(AND(N23="MENSUAL",J23="SEMESTRAL"),"REVISAR FRECUENCIAS",IF(AND(N23="MENSUAL",J23="ANUAL"),"REVISAR FRECUENCIAS","")))))))))))))))) -> 0.8 | E50: 0.75 | F50: =IF(AND(N23="ANUAL",J23="MENSUAL"),N17/12+E50,IF(AND(N23="ANUAL",J23="TRIMESTRAL"),N17/4+E50,IF(AND(N23="SEMESTRAL",J23="MENSUAL"),N17/6+E50,IF(AND(N23="SEMESTRAL",J23="TRIMESTRAL"),N17/2,IF(AND(N23="TRIMESTRAL",J23="MENSUAL"),N17/3+E50,IF(AND(N23="TRIMESTRAL",J23="TRIMESTRAL"),N17,IF(AND(N23="MENSUAL",J23="MENSUAL"),N17,""))))))) ->  | G50: =IF(AND(N23="ANUAL",J23="MENSUAL"),N17/12+F50,IF(AND(N23="ANUAL",J23="TRIMESTRAL"),N17/4+F50,IF(AND(N23="SEMESTRAL",J23="MENSUAL"),N17/6+F50,IF(AND(N23="SEMESTRAL",J23="TRIMESTRAL"),N17/2+F50,IF(AND(N23="TRIMESTRAL",J23="MENSUAL"),N17/3,IF(AND(N23="TRIMESTRAL",J23="TRIMESTRAL"),N17,IF(AND(N23="MENSUAL",J23="MENSUAL"),N17,""))))))) ->  | H50: =IF(AND($N$23="ANUAL",$J$23="MENSUAL"),$N$17/12+G50,IF(AND(N23="SEMESTRAL",J23="MENSUAL"),N17/6+G50,IF(AND(N23="TRIMESTRAL",J23="MENSUAL"),N17/3+G50,IF(AND(N23="MENSUAL",J23="MENSUAL"),N17,"")))) ->  | I50: =IF(AND($N$23="ANUAL",$J$23="MENSUAL"),$N$17/12+H50,IF(AND(N23="SEMESTRAL",J23="MENSUAL"),N17/6+H50,IF(AND(N23="TRIMESTRAL",J23="MENSUAL"),N17/3+H50,IF(AND(N23="MENSUAL",J23="MENSUAL"),N17,"")))) ->  | J50: =IF(AND($N$23="ANUAL",$J$23="MENSUAL"),$N$17/12+I50,IF(AND(N23="SEMESTRAL",J23="MENSUAL"),N17/6,IF(AND(N23="TRIMESTRAL",J23="MENSUAL"),N17/3,IF(AND(N23="MENSUAL",J23="MENSUAL"),N17,"")))) ->  | K50: =IF(AND($N$23="ANUAL",$J$23="MENSUAL"),$N$17/12+J50,IF(AND(N23="SEMESTRAL",J23="MENSUAL"),N17/6+J50,IF(AND(N23="TRIMESTRAL",J23="MENSUAL"),N17/3+J50,IF(AND(N23="MENSUAL",J23="MENSUAL"),N17,"")))) ->  | L50: =IF(AND($N$23="ANUAL",$J$23="MENSUAL"),$N$17/12+K50,IF(AND(N23="SEMESTRAL",J23="MENSUAL"),N17/6+K50,IF(AND(N23="TRIMESTRAL",J23="MENSUAL"),N17/3+K50,IF(AND(N23="MENSUAL",J23="MENSUAL"),N17,"")))) ->  | M50: =IF(AND($N$23="ANUAL",$J$23="MENSUAL"),$N$17/12+L50,IF(AND(N23="SEMESTRAL",J23="MENSUAL"),N17/6+L50,IF(AND(N23="TRIMESTRAL",J23="MENSUAL"),N17/3,IF(AND(N23="MENSUAL",J23="MENSUAL"),N17,"")))) ->  | N50: =IF(AND($N$23="ANUAL",$J$23="MENSUAL"),$N$17/12+M50,IF(AND(N23="SEMESTRAL",J23="MENSUAL"),N17/6+M50,IF(AND(N23="TRIMESTRAL",J23="MENSUAL"),N17/3+M50,IF(AND(N23="MENSUAL",J23="MENSUAL"),N17,"")))) ->  | O50: =IF(AND($N$23="ANUAL",$J$23="MENSUAL"),$N$17/12+N50,IF(AND(N23="SEMESTRAL",J23="MENSUAL"),N17/6+N50,IF(AND(N23="TRIMESTRAL",J23="MENSUAL"),N17/3+N50,IF(AND(N23="MENSUAL",J23="MENSUAL"),N17,"")))) -> 
C52: NIVEL DE SEGREGACIÓN *
C53: UNIDAD SEGREGADA (Ej. Facultad, Programa Académico, Área) | G53: RESULTADO | K53: ANÁLISIS DE DATOS SEGREGADO
C54: Uso y Apropiación discriminado | G54: =939*1/1056 -> 0.8892045455 | K54: Roles - creación de usuarios - soportes - capacitaciones - reportes
C55: Servicios Tecnológicos discriminado | G55: =260*1/423 -> 0.6146572104 | K55: Mantenimiento de recursos tecnológicos - conectividad - acompañamiento a eventos - office 365 - gestión de proyectos
C56: Uso y Apropiación discriminado | G56: =1163*1/1286 -> 0.9043545879 | K56: Roles - creación de usuarios - soportes - capacitaciones- reportes
C57: Servicios Tecnológicos discriminado | G57: =274*1/432 -> 0.6342592593 | K57: Mantenimiento de recursos tecnológicos - conectividad - acompañamiento a eventos - office 365 - gestión de proyectos
C62: Diagonal 18 No. 20-29 Fusagasugá – Cundinamarca Teléfono (601) 8281483 Línea Gratuita 018000180414 www.ucundinamarca.edu.co E-mail: info@ucundinamarca.edu.co NIT: 890.680.062-2
C63: Documento controlado por el Sistema de Gestión de la Calidad Asegúrese que corresponde a la última versión consultando el Portal Institucional
G72: Estratégico | J72: Eficacia
G73: Misional | J73: Eficiencia
G74: Apoyo | J74: Acreditación
G75: Seguimiento, Medición, Análisis y Evaluación | J75: Positiva
G76: Direccionamiento Estratégico | J76: Negativa
G77: Planeación Institucional | J77: Por Unidad Regional
G78: Proyectos Especiales y Relaciones Interinstitucionales | J78: Por Facultad
G79: Sistemas Integrados | J79: Por Programa Académico
G80: Autoevaluación y Acreditación | J80: Por área
G81: Comunicaciones | J81: Por Laboratorio
G82: Formación y Aprendizaje | J82: Otros
G83: Ciencia, Tecnología e Innovación | J83: No Aplica
G84: Interacción Social Universitaria
G85: Bienestar Universitario
G86: Admisiones y Registro
G87: Graduados
G88: Dialogando con el Mundo
G89: Talento Humano
G90: Jurídica
G91: Financiera
G92: Sistemas y Tecnología
G93: Bienes y Servicios
G94: Documental
G95: Apoyo Académico
G96: Control Interno
G97: Control Disciplinario
G98: Servicio de Atención al Ciudadano

Sheet ASI-5
B2: REGRESAR
E5: MACROPROCESO ESTRATÉGICO | M5: CÓDIGO: ESGr027
E6: PROCESO GESTIÓN SISTEMAS INTEGRADOS - CALIDAD | M6: VERSIÓN: 8
E7: MATRIZ DE MEDICIÓN Y SEGUIMIENTO A LOS PROCESOS DE GESTIÓN | M7: VIGENCIA: 2023-07-28
M8: PÁGINA: 3 de 4
C10: FICHA DE INDICADOR
C12: MACROPROCESO | E12: Apoyo | I12: NOMBRE DEL INDICADOR | K12: Soluciones a necesidades en Sistemas de Información
C13: PROCESO GESTIÓN | E13: Sistemas y Tecnología
C14: RESPONSABLE DE MEDICIÓN | E14: Ana Lucia Hurtado Mesa - Directora Sistemas y Tecnologia
C16: 1. COMPORTAMIENTO DE INDICADOR
C17: CLASIFICACIÓN DE LA MEDICIÓN | E17: 1 | H17: TIPO DE INDICADOR | J17: Eficacia | L17: META | N17: 0.7
C18: FORMULA | E18: NUMERADOR | G18: Numero de soluciones entregadas *100 | L18: UNIDAD DE MEDIDA | N18: PORCENTUAL
E19: DENOMINADOR | G19: Numero de soluciones atendidas
C20: TENDENCIA | E20: Positiva | H20: NIVEL DE SEGREGACIÓN * | J20: No Aplica | L20: ESCALA
L21: Deficiente | M21: Aceptable | N21: Bueno | O21: Excelente
L22: 0% - 49,9% | M22: 50%- 64,9% | N22: 65% -79,9% | O22: 80% - 100%
C23: ORIGEN DE DATOS NUMERADOR | E23: Cronograma de necesidades de sistemas de informacion | H23: FRECUENCIA DE LA MEDICIÓN | J23: SEMESTRAL | L23: FRECUENCIA DE RESULTADO | N23: ANUAL
C24: ORIGEN DE DATOS DENOMINADOR | E24: Cronograma de necesidades de sistemas de informacion
C26: RESULTADOS
J27: ANÁLISIS DE DATOS
J34: ACCIÓN FORMULADA
J41: RESPONSABLE
J42: =E14 -> Ana Lucia Hurtado Mesa - Directora Sistemas y Tecnologia
C45: PERIODO DE EVALUACIÓN
C46: MES | D46: =IF(J23="MENSUAL","ENERO",IF(J23="TRIMESTRAL","MARZO",IF(J23="SEMESTRAL","JUNIO",IF(J23="ANUAL",YEAR(TODAY()),"")))) -> JUNIO | E46: =IF(J23="MENSUAL","FEBRERO",IF(J23="TRIMESTRAL","JUNIO",IF(J23="SEMESTRAL","DICIEMBRE",""))) -> DICIEMBRE | F46: =IF(J23="MENSUAL","MARZO",IF(J23="TRIMESTRAL","SEPTIEMBRE","")) ->  | G46: =IF(J23="MENSUAL","ABRIL",IF(J23="TRIMESTRAL","DICIEMBRE","")) ->  | H46: =IF(J23="MENSUAL","MAYO","") ->  | I46: =IF(J23="MENSUAL","JUNIO","") ->  | J46: =IF(J23="MENSUAL","JULIO","") ->  | K46: =IF(J23="MENSUAL","AGOSTO","") ->  | L46: =IF(J23="MENSUAL","SEPTIEMBRE","") ->  | M46: =IF(J23="MENSUAL","OCTUBRE","") ->  | N46: =IF(J23="MENSUAL","NOVIEMBRE","") ->  | O46: =IF(J23="MENSUAL","DICIEMBRE","") -> 
C47: =G18 -> Numero de soluciones entregadas *100
C48: =G19 -> Numero de soluciones atendidas
C49: VALOR | D49: =IFERROR(IF($E$17=1,D47/D48,IF($E$17=2,D47,"")),"") -> 
C50: META PONDERADA | D50: =IF(AND(N23="ANUAL",J23="MENSUAL"),N17/12,IF(AND(N23="ANUAL",J23="TRIMESTRAL"),N17/4,IF(AND(N23="ANUAL",J23="SEMESTRAL"),N17/2,IF(AND(N23="ANUAL",J23="ANUAL"),N17,IF(AND(N23="SEMESTRAL",J23="MENSUAL"),N17/6,IF(AND(N23="SEMESTRAL",J23="TRIMESTRAL"),N17/2,IF(AND(N23="SEMESTRAL",J23="SEMESTRAL"),N17,IF(AND(N23="SEMESTRAL",J23="ANUAL"),"REVISAR FRECUENCIAS",IF(AND(N23="TRIMESTRAL",J23="MENSUAL"),N17/3,IF(AND(N23="TRIMESTRAL",J23="TRIMESTRAL"),N17,IF(AND(N23="TRIMESTRAL",J23="SEMESTRAL"),"REVISAR FRECUENCIAS",IF(AND(N23="TRIMESTRAL",J23="ANUAL"),"REVISAR FRECUENCIAS",IF(AND(N23="MENSUAL",J23="MENSUAL"),N17,IF(AND(N23="MENSUAL",J23="TRIMESTRAL"),"REVISAR FRECUENCIAS",IF(AND(N23="MENSUAL",J23="SEMESTRAL"),"REVISAR FRECUENCIAS",IF(AND(N23="MENSUAL",J23="ANUAL"),"REVISAR FRECUENCIAS","")))))))))))))))) -> 0.35 | E50: =IF(AND(N23="ANUAL",J23="MENSUAL"),N17/12+D50,IF(AND(N23="ANUAL",J23="TRIMESTRAL"),N17/4+D50,IF(AND(N23="ANUAL",J23="SEMESTRAL"),N17/2+D50,IF(AND(N23="SEMESTRAL",J23="MENSUAL"),N17/6+D50,IF(AND(N23="SEMESTRAL",J23="TRIMESTRAL"),N17/2+D50,IF(AND(N23="SEMESTRAL",J23="SEMESTRAL"),N17,IF(AND(N23="TRIMESTRAL",J23="MENSUAL"),N17/3+D50,IF(AND(N23="TRIMESTRAL",J23="TRIMESTRAL"),N17,IF(AND(N23="MENSUAL",J23="MENSUAL"),N17,""))))))))) -> 0.7 | F50: =IF(AND(N23="ANUAL",J23="MENSUAL"),N17/12+E50,IF(AND(N23="ANUAL",J23="TRIMESTRAL"),N17/4+E50,IF(AND(N23="SEMESTRAL",J23="MENSUAL"),N17/6+E50,IF(AND(N23="SEMESTRAL",J23="TRIMESTRAL"),N17/2,IF(AND(N23="TRIMESTRAL",J23="MENSUAL"),N17/3+E50,IF(AND(N23="TRIMESTRAL",J23="TRIMESTRAL"),N17,IF(AND(N23="MENSUAL",J23="MENSUAL"),N17,""))))))) ->  | G50: =IF(AND(N23="ANUAL",J23="MENSUAL"),N17/12+F50,IF(AND(N23="ANUAL",J23="TRIMESTRAL"),N17/4+F50,IF(AND(N23="SEMESTRAL",J23="MENSUAL"),N17/6+F50,IF(AND(N23="SEMESTRAL",J23="TRIMESTRAL"),N17/2+F50,IF(AND(N23="TRIMESTRAL",J23="MENSUAL"),N17/3,IF(AND(N23="TRIMESTRAL",J23="TRIMESTRAL"),N17,IF(AND(N23="MENSUAL",J23="MENSUAL"),N17,""))))))) ->  | H50: =IF(AND($N$23="ANUAL",$J$23="MENSUAL"),$N$17/12+G50,IF(AND(N23="SEMESTRAL",J23="MENSUAL"),N17/6+G50,IF(AND(N23="TRIMESTRAL",J23="MENSUAL"),N17/3+G50,IF(AND(N23="MENSUAL",J23="MENSUAL"),N17,"")))) ->  | I50: =IF(AND($N$23="ANUAL",$J$23="MENSUAL"),$N$17/12+H50,IF(AND(N23="SEMESTRAL",J23="MENSUAL"),N17/6+H50,IF(AND(N23="TRIMESTRAL",J23="MENSUAL"),N17/3+H50,IF(AND(N23="MENSUAL",J23="MENSUAL"),N17,"")))) ->  | J50: =IF(AND($N$23="ANUAL",$J$23="MENSUAL"),$N$17/12+I50,IF(AND(N23="SEMESTRAL",J23="MENSUAL"),N17/6,IF(AND(N23="TRIMESTRAL",J23="MENSUAL"),N17/3,IF(AND(N23="MENSUAL",J23="MENSUAL"),N17,"")))) ->  | K50: =IF(AND($N$23="ANUAL",$J$23="MENSUAL"),$N$17/12+J50,IF(AND(N23="SEMESTRAL",J23="MENSUAL"),N17/6+J50,IF(AND(N23="TRIMESTRAL",J23="MENSUAL"),N17/3+J50,IF(AND(N23="MENSUAL",J23="MENSUAL"),N17,"")))) ->  | L50: =IF(AND($N$23="ANUAL",$J$23="MENSUAL"),$N$17/12+K50,IF(AND(N23="SEMESTRAL",J23="MENSUAL"),N17/6+K50,IF(AND(N23="TRIMESTRAL",J23="MENSUAL"),N17/3+K50,IF(AND(N23="MENSUAL",J23="MENSUAL"),N17,"")))) ->  | M50: =IF(AND($N$23="ANUAL",$J$23="MENSUAL"),$N$17/12+L50,IF(AND(N23="SEMESTRAL",J23="MENSUAL"),N17/6+L50,IF(AND(N23="TRIMESTRAL",J23="MENSUAL"),N17/3,IF(AND(N23="MENSUAL",J23="MENSUAL"),N17,"")))) ->  | N50: =IF(AND($N$23="ANUAL",$J$23="MENSUAL"),$N$17/12+M50,IF(AND(N23="SEMESTRAL",J23="MENSUAL"),N17/6+M50,IF(AND(N23="TRIMESTRAL",J23="MENSUAL"),N17/3+M50,IF(AND(N23="MENSUAL",J23="MENSUAL"),N17,"")))) ->  | O50: =IF(AND($N$23="ANUAL",$J$23="MENSUAL"),$N$17/12+N50,IF(AND(N23="SEMESTRAL",J23="MENSUAL"),N17/6+N50,IF(AND(N23="TRIMESTRAL",J23="MENSUAL"),N17/3+N50,IF(AND(N23="MENSUAL",J23="MENSUAL"),N17,"")))) -> 
C52: NIVEL DE SEGREGACIÓN *
C53: UNIDAD SEGREGADA (Ej. Facultad, Programa Académico, Área) | G53: RESULTADO | K53: ANALISIS DE DATOS SEGREGADO
C62: Diagonal 18 No. 20-29 Fusagasugá – Cundinamarca Teléfono (601) 8281483 Línea Gratuita 018000180414 www.ucundinamarca.edu.co E-mail: info@ucundinamarca.edu.co NIT: 890.680.062-2
C63: Documento controlado por el Sistema de Gestión de la Calidad Asegúrese que corresponde a la última versión consultando el Portal Institucional
G72: Estratégico | J72: Eficacia
G73: Misional | J73: Eficiencia
G74: Apoyo | J74: Acreditación
G75: Seguimiento, Medición, Análisis y Evaluación | J75: Positiva
G76: Direccionamiento Estratégico | J76: Negativa
G77: Planeación Institucional | J77: Por Unidad Regional
G78: Proyectos Especiales y Relaciones Interinstitucionales | J78: Por Facultad
G79: Sistemas Integrados | J79: Por Programa Académico
G80: Autoevaluación y Acreditación | J80: Por área
G81: Comunicaciones | J81: Por Laboratorio
G82: Formación y Aprendizaje | J82: Otros
G83: Ciencia, Tecnología e Innovación | J83: No Aplica
G84: Interacción Social Universitaria
G85: Bienestar Universitario
G86: Admisiones y Registro
G87: Graduados
G88: Dialogando con el Mundo
G89: Talento Humano
G90: Jurídica
G91: Financiera
G92: Sistemas y Tecnología
G93: Bienes y Servicios
G94: Documental
G95: Apoyo Académico
G96: Control Interno
G97: Control Disciplinario
G98: Servicio de Atención al Ciudadano

Sheet ACTUALIZACIONES
C2: MACROPROCESO ESTRATÉGICO | E2: CÓDIGO: ESGr027
C3: PROCESO GESTIÓN SISTEMAS INTEGRADOS - CALIDAD | E3: VERSIÓN: 8
C4: MATRIZ DE MEDICIÓN Y SEGUIMIENTO A LOS PROCESOS DE GESTIÓN | E4: VIGENCIA: 2023-07-28
E5: PÁGINA: 6 de 6
B7: CONTROL DE ACTUALIZACIONES
B8: FECHA | C8: DESCRIPCIÓN DE LA ACTUALIZACIÓN | D8: RESPONSABLE | E8: CARGO
B9: 2020-03-31 | C9: ABS Se agregan dos nuevos indicadores para Acreditación "Mantenimiento a infraestructura de espacios académicos" y "Renovación y actualización de obras con enfoque inclusivo" | D9: Jaime Elder Acosta Ramírez | E9: Coordinador de Calidad
C10: MBU Se agrega un nuevo indicador para Acreditación "Participación de la Comunidad Universitaria"
C11: MIU Se agrega un nuevo indicador para Acreditación "Vinculación efectiva con la comunidad y el sector productivo"
B12: 2022-03-16 | C12: ASI Se suprime el indicador ASI-1 "Sistemas de Información implementados" dado que el mismo ya tiene un cumplimiento satisfactorio por parte del proceso. Se define el indicador INS-5 "Uso y apropiación de los sistemas de información" y el indicador ASI-2 "Ejecución de mantenimientos preventivos a recursos informáticos de custodia de la Dirección de Sistemas y Tecnología" para la vigencia 2022. | D12: Edilson Martínez Clavijo | E12: Director de Sistemas y Tecnología
B13: 2023-06-22 | C13: Se mantiene la meta para el indicador INS5 -Uso y apropiación de los sistemas de información, del 80% . Se ajusta el alcance en el indicador ASI-3, donde se realizará la medición en la ejecución de mantenimientos tanto en la sede, como en seccionales y extensiones. Se crea el indicador ASI- 4 (Efectividad del servicio - Mesa de servicios a un clic) para medir la eficiencia en los tiempos de respuesta en los servicios de uso y apropiación (roles - creacion de usuarios - soportes - capacitaciones- reportes) y servicios tecnológicos (mantenimiento de recursos tecnologicos - conectividad - acompañamiento a eventos- office 360 -365 - gestión de proyectos) y satisfacciòn del usuario final con una meta del 75% de solicitudes atendidas en 10 días hábiles. Se realiza ejercicio de planificación de actividades, identificación de recursos, tiempos y responsables en la consecución de los objetivos medidos a través de los indicadores del proceso. | D13: Daniel Andres Rocha Ramirez | E13: Director de Sistemas y Tecnología
B14: 2024-02-28 | C14: Se ajustan los criterios identificados en el 5W2H y fechas de finalización de las metas asociadas a los indicadores de gestión del proceso. | D14: Ana Lucia Hurtado Mesa | E14: Directora de Sistemas y Tecnología
B15: 2025-03-13 | C15: INS-5 Uso y apropiación de los sistemas de información Se ajusta la meta para el indicador del 80% al 85%, de conformidad con las tendencias de resultado para la vigencia 2024-2023, de igual manera se realiza ajuste al origen de los datos, de forma tal que se relaciona la base especifica de datos del numerador. Se analizan acciones de mejora propia con enfoque institucional para el indicador. ASI-2 Ejecución de mantenimientos preventivos a recursos informáticos de custodia de la Dirección de Sistemas y Tecnología, Se realiza ajuste en la meta de cumplimiento del indicador, pasando de 70% al 80%, de conformidad con las tendencias de resultado para la vigencia 2024-2023, de igula manera se evaluan posibles acciones de mejora propia para mejor rendimiento en el proceso. ASI-3 Ejecución de mantenimientos preventivos a cuartos de telecomunicaciones (TR's) y centros de datos (CD's) de la sede seccionales y extensiones en custodia de la Dirección de Sistemas y Tecnología, Se realiza ajuste en la meta de cumplimiento del indicador, pasando de 70% al 85%, de conformidad con las tendencias de resultado para la vigencia 2024-2023, así como la identificación en el origen de los datos, de igual manera se evaluan posibles acciones de mejora propia para mejor rendimiento en el proceso. ASI-4 Efectividad del Servicio - Mesa de Servicios a un Clic, Se realiza ajuste en la meta de cumplimiento del indicador, pasando de 75% al 80%, de conformidad con las tendencias de resultado para la vigencia 2024-2023, así como la identificación en el origen de los datos; Se ajusta la formula del indicador, relacionando el criterio en tiempos para la medición, igual o menor a 10 días, tambien se evaluan posibles acciones de mejora propia para mejor rendimiento en el proceso. Se actualiza la vigencia en las actividades relacionadas en la planificación de actividades, identificación de recursos, tiempos y responsables en la consecución de las metas de los indicadores del proceso y a su vez objetivos específicos del mismo. ASI-5 Soluciones a necesidades en Sistemas de Información: Se crea el nuevo indicador que permitirá medir la entrega de necesidades y requerimientos identificados en el proceso de diseño y desarrollo de los sistema de información, garantizando que todas las necesidades sean cubiertas desde la Dirección de Sistemas y Tecnología a todos los procesos de conformidad con los lienamientos institucionales para cada vigencia. Este inidcador parte con meta de cumplimiento del 70% anual, con seguimientos de medición semestrales. | D15: Ana Lucia Hurtado Mesa | E15: Directora de Sistemas y Tecnología
B26: Diagonal 18 No. 20-29 Fusagasugá – Cundinamarca Teléfono (601) 8281483 Línea Gratuita 018000180414 www.ucundinamarca.edu.co E-mail: info@ucundinamarca.edu.co NIT: 890.680.062-2
B29: Documento controlado por el Sistema de Gestión de la Calidad Asegúrese que corresponde a la última versión consultando el Portal Institucional

Sheet ITEM (hidden)
A1: MENSUAL | C1: NÚMERO
A2: TRIMESTRAL | C2: PORCENTAJE
A3: SEMESTRAL
A4: ANUAL
